[Event "*** Qualifier 4: Titled Tuesday 3|2 Blitz"]
[Site "Chess.com"]
[Date "2017.04.25"]
[Round "10"]
[White "Rating-Schmating"]
[Black "prochn"]
[Result "0-1"]
[WhiteElo "2218"]
[BlackElo "2221"]
[TimeControl "180+2"]
[EndTime "15:12:55 PDT"]
[Termination "prochn won by checkmate"]

1. e4 {[%clk 0:03:01.9]} 1... c6 {[%clk 0:03:00.8]} 2. Nf3 {[%clk 0:03:02.3]}
2... d5 {[%clk 0:03:01.8]} 3. Nc3 {[%clk 0:03:03.5]} 3... Bg4 {[%clk 0:03:01.8]}
4. h3 {[%clk 0:03:04.5]} 4... Bh5 {[%clk 0:03:02.5]} 5. Be2 {[%clk 0:02:54]}
5... e6 {[%clk 0:02:57.4]} 6. d3 {[%clk 0:02:51.1]} 6... Nd7 {[%clk 0:02:56.4]}
7. O-O {[%clk 0:02:50.7]} 7... a6 {[%clk 0:02:28.5]} 8. Bf4 {[%clk 0:02:48.7]}
8... Bxf3 {[%clk 0:02:20.8]} 9. Bxf3 {[%clk 0:02:48.8]} 9... d4 {[%clk 0:02:22]}
10. Ne2 {[%clk 0:02:49.5]} 10... e5 {[%clk 0:02:23]} 11. Bh2 {[%clk 0:02:49.2]}
11... Ngf6 {[%clk 0:02:20.8]} 12. g4 {[%clk 0:02:49.7]} 12... h6 {[%clk
0:02:20.5]} 13. Bg2 {[%clk 0:02:51.1]} 13... g5 {[%clk 0:02:20.9]} 14. Ng3
{[%clk 0:02:51.8]} 14... Bc5 {[%clk 0:02:13.6]} 15. Nf5 {[%clk 0:02:52.8]} 15...
Qc7 {[%clk 0:02:08.4]} 16. Ng7+ {[%clk 0:02:53]} 16... Kf8 {[%clk 0:02:08.9]}
17. Nf5 {[%clk 0:02:54.2]} 17... Bd6 {[%clk 0:02:03.6]} 18. c3 {[%clk
0:02:54.4]} 18... dxc3 {[%clk 0:01:54]} 19. bxc3 {[%clk 0:02:56.3]} 19... Rd8
{[%clk 0:01:49.9]} 20. d4 {[%clk 0:02:56.5]} 20... Kg8 {[%clk 0:01:46.6]} 21.
Qb3 {[%clk 0:02:56.3]} 21... Ne8 {[%clk 0:01:19.8]} 22. Rad1 {[%clk 0:02:51.5]}
22... Qb6 {[%clk 0:01:01.5]} 23. dxe5 {[%clk 0:02:40.7]} 23... Qxb3 {[%clk
0:00:57.2]} 24. axb3 {[%clk 0:02:38.4]} 24... Bc7 {[%clk 0:00:58.4]} 25. Nd6
{[%clk 0:02:35.6]} 25... Bxd6 {[%clk 0:00:17.3]} 26. exd6 {[%clk 0:02:35.3]}
26... Ng7 {[%clk 0:00:17.2]} 27. e5 {[%clk 0:02:35]} 27... Ne6 {[%clk
0:00:18.4]} 28. b4 {[%clk 0:02:32.5]} 28... Kg7 {[%clk 0:00:18.9]} 29. Be4
{[%clk 0:02:33.1]} 29... Rhe8 {[%clk 0:00:18.3]} 30. Bf5 {[%clk 0:02:34.3]}
30... Nf4 {[%clk 0:00:17.4]} 31. Bxf4 {[%clk 0:02:29.6]} 31... gxf4 {[%clk
0:00:18.1]} 32. Bxd7 {[%clk 0:02:30.9]} 32... Rxd7 {[%clk 0:00:20]} 33. Rfe1
{[%clk 0:02:32.4]} 33... Re6 {[%clk 0:00:19.6]} 34. Kg2 {[%clk 0:02:33]} 34...
f6 {[%clk 0:00:20.1]} 35. exf6+ {[%clk 0:02:32.8]} 35... Kxf6 {[%clk 0:00:22]}
36. Rxe6+ {[%clk 0:02:24.6]} 36... Kxe6 {[%clk 0:00:23.5]} 37. Kf3 {[%clk
0:02:25.4]} 37... Ke5 {[%clk 0:00:24.9]} 38. Re1+ {[%clk 0:02:26]} 38... Kf6
{[%clk 0:00:23.5]} 39. Rd1 {[%clk 0:02:20.6]} 39... Ke5 {[%clk 0:00:23.4]} 40.
c4 {[%clk 0:02:22]} 40... b6 {[%clk 0:00:23.6]} 41. c5 {[%clk 0:02:22.2]} 41...
bxc5 {[%clk 0:00:23.5]} 42. bxc5 {[%clk 0:02:24.1]} 42... a5 {[%clk 0:00:24.9]}
43. Ra1 {[%clk 0:02:22.9]} 43... Ra7 {[%clk 0:00:25.4]} 44. Rd1 {[%clk
0:02:14.7]} 44... Rd7 {[%clk 0:00:25.6]} 45. Re1+ {[%clk 0:02:10.1]} 45... Kd5
{[%clk 0:00:26.2]} 46. Rc1 {[%clk 0:02:06.3]} 46... Ke5 {[%clk 0:00:27.1]} 47.
Rc4 {[%clk 0:02:04.8]} 47... Ra7 {[%clk 0:00:27.7]} 48. Ra4 {[%clk 0:01:59.8]}
48... Kd5 {[%clk 0:00:27.5]} 49. Rxa5 {[%clk 0:01:55.8]} 49... Rxa5 {[%clk
0:00:27.4]} 50. d7 {[%clk 0:01:57.3]} 50... Ra8 {[%clk 0:00:28.4]} 51. Kxf4
{[%clk 0:01:57.4]} 51... Kxc5 {[%clk 0:00:29.7]} 52. g5 {[%clk 0:01:58.8]} 52...
hxg5+ {[%clk 0:00:30.3]} 53. Kxg5 {[%clk 0:02:00.7]} 53... Kd6 {[%clk
0:00:31.7]} 54. f4 {[%clk 0:02:02.4]} 54... Kxd7 {[%clk 0:00:32.3]} 55. f5
{[%clk 0:02:04.3]} 55... Ke7 {[%clk 0:00:33.7]} 56. f6+ {[%clk 0:02:05.8]} 56...
Kf7 {[%clk 0:00:34.8]} 57. h4 {[%clk 0:02:07.7]} 57... c5 {[%clk 0:00:36.2]} 58.
h5 {[%clk 0:02:08.5]} 58... c4 {[%clk 0:00:37.6]} 59. Kf4 {[%clk 0:02:09.7]}
59... c3 {[%clk 0:00:38.6]} 60. Ke3 {[%clk 0:02:11.6]} 60... Rd8 {[%clk
0:00:39]} 61. h6 {[%clk 0:02:12.5]} 61... c2 {[%clk 0:00:40.3]} 62. h7 {[%clk
0:02:14.4]} 62... c1=Q+ {[%clk 0:00:41.3]} 63. Ke4 {[%clk 0:02:16.3]} 63... Qc3
{[%clk 0:00:39.7]} 64. Kf5 {[%clk 0:02:17.5]} 64... Qd4 {[%clk 0:00:37.4]} 65.
h8=Q {[%clk 0:02:17.2]} 65... Rd5# {[%clk 0:00:36.6]} 0-1

[Event "*** Qualifier 4: Titled Tuesday 3|2 Blitz"]
[Site "Chess.com"]
[Date "2017.04.25"]
[Round "10"]
[White "ehrenfeld"]
[Black "rasmussvane"]
[Result "1-0"]
[WhiteElo "2408"]
[BlackElo "2510"]
[TimeControl "180+2"]
[EndTime "15:13:12 PDT"]
[Termination "ehrenfeld won by resignation"]

1. e4 {[%clk 0:03:02]} 1... c6 {[%clk 0:03:01.3]} 2. d4 {[%clk 0:03:02.5]} 2...
d5 {[%clk 0:03:03]} 3. exd5 {[%clk 0:03:03.7]} 3... cxd5 {[%clk 0:03:04.1]} 4.
Bd3 {[%clk 0:03:05]} 4... Nc6 {[%clk 0:03:04.8]} 5. c3 {[%clk 0:03:06.2]} 5...
Qc7 {[%clk 0:03:06.3]} 6. Bg5 {[%clk 0:03:07]} 6... Nf6 {[%clk 0:03:04.2]} 7.
Nf3 {[%clk 0:03:07.7]} 7... Bg4 {[%clk 0:03:04.9]} 8. Nbd2 {[%clk 0:03:08.4]}
8... e6 {[%clk 0:03:05.9]} 9. Bh4 {[%clk 0:03:09.3]} 9... Bd6 {[%clk 0:03:06.8]}
10. Bg3 {[%clk 0:03:10.4]} 10... Bh5 {[%clk 0:03:03.2]} 11. O-O {[%clk
0:03:09.7]} 11... Bg6 {[%clk 0:03:02.2]} 12. Qe2 {[%clk 0:03:05.9]} 12... Bxd3
{[%clk 0:03:02.9]} 13. Qxd3 {[%clk 0:03:06.5]} 13... O-O {[%clk 0:03:04.5]} 14.
Rae1 {[%clk 0:03:01.2]} 14... b5 {[%clk 0:02:55.4]} 15. Bxd6 {[%clk 0:02:46.6]}
15... Qxd6 {[%clk 0:02:54.7]} 16. Ne5 {[%clk 0:02:46]} 16... b4 {[%clk
0:02:49.5]} 17. Nxc6 {[%clk 0:02:43.2]} 17... Qxc6 {[%clk 0:02:50.3]} 18. cxb4
{[%clk 0:02:43.8]} 18... Rfc8 {[%clk 0:02:49.6]} 19. Nb3 {[%clk 0:02:16.6]}
19... Qc2 {[%clk 0:02:47]} 20. Qxc2 {[%clk 0:02:07.6]} 20... Rxc2 {[%clk
0:02:48.9]} 21. Rb1 {[%clk 0:02:08.6]} 21... Ne4 {[%clk 0:02:32.9]} 22. f3
{[%clk 0:02:02.6]} 22... Nd6 {[%clk 0:02:27.1]} 23. Rfc1 {[%clk 0:01:51.7]}
23... Rac8 {[%clk 0:02:17.6]} 24. Rxc2 {[%clk 0:01:49.8]} 24... Rxc2 {[%clk
0:02:17.9]} 25. Rc1 {[%clk 0:01:42]} 25... Rxb2 {[%clk 0:02:11.6]} 26. Rc6
{[%clk 0:01:42.4]} 26... Ne8 {[%clk 0:02:12]} 27. Ra6 {[%clk 0:01:42.7]} 27...
g5 {[%clk 0:02:01.1]} 28. Rxa7 {[%clk 0:01:43]} 28... Nd6 {[%clk 0:02:02.4]} 29.
h4 {[%clk 0:01:03.8]} 29... gxh4 {[%clk 0:01:56.8]} 30. Kh2 {[%clk 0:01:03.7]}
30... h5 {[%clk 0:01:38]} 31. Ra6 {[%clk 0:00:55.2]} 31... Nf5 {[%clk
0:01:29.6]} 32. b5 {[%clk 0:00:48.6]} 32... Rb1 {[%clk 0:01:29.5]} 33. Rc6
{[%clk 0:00:45.5]} 33... Ne3 {[%clk 0:00:23.4]} 34. b6 {[%clk 0:00:39.7]} 34...
Nf1+ {[%clk 0:00:17.2]} 35. Kh3 {[%clk 0:00:39]} 35... Nd2 {[%clk 0:00:11.8]}
36. Rc1 {[%clk 0:00:25.6]} 1-0

[Event "*** Qualifier 4: Titled Tuesday 3|2 Blitz"]
[Site "Chess.com"]
[Date "2017.04.25"]
[Round "10"]
[White "Hikaru"]
[Black "LyonBeast"]
[Result "1-0"]
[WhiteElo "2938"]
[BlackElo "2803"]
[TimeControl "180+2"]
[EndTime "15:13:15 PDT"]
[Termination "Hikaru won by resignation"]

1. d4 {[%clk 0:03:01.5]} 1... Nf6 {[%clk 0:02:57.6]} 2. c4 {[%clk 0:03:02.6]}
2... g6 {[%clk 0:02:59]} 3. f3 {[%clk 0:03:03.9]} 3... c5 {[%clk 0:02:58.2]} 4.
d5 {[%clk 0:03:04.2]} 4... d6 {[%clk 0:02:59.7]} 5. Nc3 {[%clk 0:03:05.1]} 5...
Bg7 {[%clk 0:02:58.8]} 6. e4 {[%clk 0:03:07]} 6... e6 {[%clk 0:03:00.3]} 7. Bg5
{[%clk 0:03:08.3]} 7... exd5 {[%clk 0:02:59.6]} 8. cxd5 {[%clk 0:03:10.2]} 8...
O-O {[%clk 0:03:00.4]} 9. Qd2 {[%clk 0:03:11]} 9... a6 {[%clk 0:03:01]} 10. a4
{[%clk 0:03:12.2]} 10... h6 {[%clk 0:02:59.3]} 11. Be3 {[%clk 0:03:12.5]} 11...
Nbd7 {[%clk 0:02:58.1]} 12. Nh3 {[%clk 0:03:13.2]} 12... Rb8 {[%clk 0:02:52]}
13. Nf2 {[%clk 0:03:13.8]} 13... Kh7 {[%clk 0:02:49.9]} 14. Be2 {[%clk
0:03:14.9]} 14... Ne8 {[%clk 0:02:41]} 15. O-O {[%clk 0:03:12.6]} 15... Nc7
{[%clk 0:02:42.5]} 16. Rab1 {[%clk 0:03:01.7]} 16... b5 {[%clk 0:02:36.3]} 17.
axb5 {[%clk 0:03:03.6]} 17... axb5 {[%clk 0:02:25.4]} 18. b4 {[%clk 0:03:04.2]}
18... cxb4 {[%clk 0:02:23.7]} 19. Rxb4 {[%clk 0:03:06.1]} 19... Ba6 {[%clk
0:02:15.5]} 20. Bd4 {[%clk 0:03:06]} 20... Nc5 {[%clk 0:02:11.1]} 21. Bxg7
{[%clk 0:03:03.9]} 21... Kxg7 {[%clk 0:02:13]} 22. Ng4 {[%clk 0:03:05]} 22... h5
{[%clk 0:02:11.9]} 23. Qd4+ {[%clk 0:02:40.8]} 23... f6 {[%clk 0:02:12.6]} 24.
Ne3 {[%clk 0:02:39.8]} 24... Qe7 {[%clk 0:02:11.8]} 25. f4 {[%clk 0:02:40.7]}
25... Bc8 {[%clk 0:02:07]} 26. f5 {[%clk 0:02:26.2]} 26... Qe5 {[%clk
0:02:06.2]} 27. fxg6 {[%clk 0:02:24.9]} 27... Qxd4 {[%clk 0:02:07.1]} 28. Rxd4
{[%clk 0:02:26.7]} 28... b4 {[%clk 0:02:08.6]} 29. Na2 {[%clk 0:02:16.9]} 29...
b3 {[%clk 0:02:07.6]} 30. Nb4 {[%clk 0:02:17.6]} 30... b2 {[%clk 0:01:57.6]} 31.
Rb1 {[%clk 0:02:10]} 31... Re8 {[%clk 0:01:18.3]} 32. Rxb2 {[%clk 0:02:07.1]}
32... Rxe4 {[%clk 0:01:17.8]} 33. Rxe4 {[%clk 0:02:06.2]} 33... Nxe4 {[%clk
0:01:19.7]} 34. Bxh5 {[%clk 0:02:07.5]} 34... f5 {[%clk 0:00:56]} 35. Rc2 {[%clk
0:01:58.9]} 35... Ne8 {[%clk 0:00:50.9]} 36. Bf3 {[%clk 0:01:49.2]} 36... f4
{[%clk 0:00:34.7]} 37. Nf1 {[%clk 0:01:36.2]} 37... Bf5 {[%clk 0:00:35.2]} 38.
Rc4 {[%clk 0:01:34.4]} 38... Ng5 {[%clk 0:00:19.2]} 39. Rxf4 {[%clk 0:01:31.6]}
39... Nxf3+ {[%clk 0:00:20.2]} 40. gxf3 {[%clk 0:01:17.2]} 40... Bxg6 {[%clk
0:00:20.7]} 41. Rc4 {[%clk 0:01:13.9]} 41... Nf6 {[%clk 0:00:21.5]} 42. Ne3
{[%clk 0:01:13.2]} 42... Re8 {[%clk 0:00:20.8]} 43. Kf2 {[%clk 0:01:14.1]} 43...
Rh8 {[%clk 0:00:21.8]} 44. h4 {[%clk 0:01:14.9]} 44... Rb8 {[%clk 0:00:21.7]}
45. Ng2 {[%clk 0:01:11.6]} 45... Bf7 {[%clk 0:00:21.3]} 46. Ne3 {[%clk
0:01:11.6]} 46... Bg6 {[%clk 0:00:21]} 47. Ke2 {[%clk 0:01:09.3]} 47... Rb5
{[%clk 0:00:21.7]} 48. Kd2 {[%clk 0:01:10.5]} 48... Kf8 {[%clk 0:00:18.7]} 49.
Kc3 {[%clk 0:01:10.8]} 49... Bf7 {[%clk 0:00:19.6]} 50. Rf4 {[%clk 0:01:09.9]}
50... Rxb4 {[%clk 0:00:17.1]} 51. Kxb4 {[%clk 0:01:09.1]} 1-0

[Event "*** Qualifier 4: Titled Tuesday 3|2 Blitz"]
[Site "Chess.com"]
[Date "2017.04.25"]
[Round "10"]
[White "Alex_Molchanov"]
[Black "DryCounty"]
[Result "0-1"]
[WhiteElo "2420"]
[BlackElo "2482"]
[TimeControl "180+2"]
[EndTime "15:13:32 PDT"]
[Termination "DryCounty won by resignation"]

1. d4 {[%clk 0:03:02]} 1... Nf6 {[%clk 0:03:00.9]} 2. c4 {[%clk 0:03:03.9]} 2...
a6 {[%clk 0:03:01.5]} 3. Nf3 {[%clk 0:03:05.6]} 3... b5 {[%clk 0:03:02.4]} 4.
cxb5 {[%clk 0:03:05.5]} 4... axb5 {[%clk 0:03:03.1]} 5. e3 {[%clk 0:03:07.2]}
5... b4 {[%clk 0:03:02.5]} 6. Bd3 {[%clk 0:03:00.7]} 6... e6 {[%clk 0:03:03.3]}
7. e4 {[%clk 0:02:57.9]} 7... Bb7 {[%clk 0:03:02.5]} 8. Nbd2 {[%clk 0:02:53.8]}
8... d5 {[%clk 0:03:01.7]} 9. e5 {[%clk 0:02:48.8]} 9... Ne4 {[%clk 0:03:02.7]}
10. O-O {[%clk 0:02:48.6]} 10... Be7 {[%clk 0:02:59.6]} 11. Re1 {[%clk
0:02:43.7]} 11... Nxd2 {[%clk 0:02:56.9]} 12. Bxd2 {[%clk 0:02:41.4]} 12... c5
{[%clk 0:02:56.9]} 13. dxc5 {[%clk 0:02:34.4]} 13... Bxc5 {[%clk 0:02:52.7]} 14.
Ng5 {[%clk 0:02:32.6]} 14... Qb6 {[%clk 0:02:38.1]} 15. Qf3 {[%clk 0:02:03.3]}
15... Rf8 {[%clk 0:02:34.7]} 16. Nxh7 {[%clk 0:02:03.7]} 16... Rh8 {[%clk
0:02:35.6]} 17. Ng5 {[%clk 0:02:02.9]} 17... Rf8 {[%clk 0:02:36.5]} 18. a3
{[%clk 0:01:26.3]} 18... Nd7 {[%clk 0:02:30.3]} 19. Bf4 {[%clk 0:01:11.3]} 19...
Bd4 {[%clk 0:01:52.3]} 20. Rab1 {[%clk 0:01:05.4]} 20... Ba6 {[%clk 0:01:41]}
21. Bh7 {[%clk 0:00:44.9]} 21... Rc8 {[%clk 0:01:36.6]} 22. Bg3 {[%clk
0:00:44.2]} 22... Rc7 {[%clk 0:01:11.4]} 23. h4 {[%clk 0:00:44.5]} 23... g6
{[%clk 0:01:09.9]} 24. Nxf7 {[%clk 0:00:32.1]} 24... Rxf7 {[%clk 0:01:10.2]} 25.
Bxg6 {[%clk 0:00:32.9]} 25... Nf8 {[%clk 0:01:11.2]} 26. Bh5 {[%clk 0:00:31.7]}
26... b3 {[%clk 0:01:00.8]} 27. Rbc1 {[%clk 0:00:31.2]} 27... Bc4 {[%clk
0:00:58.6]} 28. Rxc4 {[%clk 0:00:24.7]} 28... dxc4 {[%clk 0:00:55.2]} 29. Bf4
{[%clk 0:00:26]} 29... Qc6 {[%clk 0:00:41.5]} 30. Bxf7+ {[%clk 0:00:26.2]} 30...
Kxf7 {[%clk 0:00:40.7]} 31. Qh5+ {[%clk 0:00:26.6]} 31... Ke7 {[%clk 0:00:33.3]}
32. Bg5+ {[%clk 0:00:25.9]} 32... Kd7 {[%clk 0:00:33.6]} 33. Qf7+ {[%clk
0:00:26.3]} 33... Kc8 {[%clk 0:00:34.8]} 34. Qxf8+ {[%clk 0:00:27.5]} 34... Kb7
{[%clk 0:00:35.4]} 35. Rd1 {[%clk 0:00:19.8]} 35... Rd7 {[%clk 0:00:33.9]} 36.
Qb4+ {[%clk 0:00:19.1]} 36... Qb6 {[%clk 0:00:24.8]} 37. Qxc4 {[%clk 0:00:18.1]}
37... Bxf2+ {[%clk 0:00:25]} 38. Kh2 {[%clk 0:00:19]} 38... Rxd1 {[%clk
0:00:26]} 39. Qe4+ {[%clk 0:00:18.8]} 39... Qc6 {[%clk 0:00:25.5]} 40. Qf3
{[%clk 0:00:19.3]} 40... Qxf3 {[%clk 0:00:25.7]} 41. gxf3 {[%clk 0:00:20.1]}
41... Rb1 {[%clk 0:00:25.5]} 42. h5 {[%clk 0:00:20.9]} 42... Rxb2 {[%clk
0:00:21.5]} 43. Bf6 {[%clk 0:00:20.9]} 43... Be3+ {[%clk 0:00:21.6]} 44. Kg3
{[%clk 0:00:21.8]} 44... Rc2 {[%clk 0:00:22]} 45. h6 {[%clk 0:00:23.2]} 45...
Bxh6 {[%clk 0:00:22.1]} 0-1

[Event "*** Qualifier 4: Titled Tuesday 3|2 Blitz"]
[Site "Chess.com"]
[Date "2017.04.25"]
[Round "10"]
[White "IIIlllII1llIl"]
[Black "Cayse"]
[Result "0-1"]
[WhiteElo "2554"]
[BlackElo "2656"]
[TimeControl "180+2"]
[EndTime "15:13:39 PDT"]
[Termination "Cayse won by resignation"]

1. e4 {[%clk 0:03:02]} 1... e5 {[%clk 0:03:00.4]} 2. Nf3 {[%clk 0:03:02.7]} 2...
Nc6 {[%clk 0:03:00.5]} 3. Bc4 {[%clk 0:03:00.5]} 3... Nf6 {[%clk 0:03:00.9]} 4.
Ng5 {[%clk 0:02:56.9]} 4... d5 {[%clk 0:03:00.8]} 5. exd5 {[%clk 0:02:58.8]}
5... Na5 {[%clk 0:03:01.2]} 6. d3 {[%clk 0:02:59.7]} 6... h6 {[%clk 0:02:58.5]}
7. Nf3 {[%clk 0:03:00.6]} 7... e4 {[%clk 0:02:57.2]} 8. Qe2 {[%clk 0:03:00.7]}
8... Nxc4 {[%clk 0:02:40.4]} 9. dxc4 {[%clk 0:03:02.6]} 9... Bc5 {[%clk
0:02:39.7]} 10. Nfd2 {[%clk 0:02:43]} 10... O-O {[%clk 0:02:39.5]} 11. Nb3
{[%clk 0:02:44.2]} 11... Bg4 {[%clk 0:02:37.1]} 12. Qf1 {[%clk 0:02:44.8]} 12...
Bd6 {[%clk 0:02:32.2]} 13. h3 {[%clk 0:02:38.9]} 13... Bh5 {[%clk 0:02:32.3]}
14. g4 {[%clk 0:02:35.8]} 14... Bg6 {[%clk 0:02:32.3]} 15. Be3 {[%clk
0:02:24.9]} 15... a5 {[%clk 0:02:32.6]} 16. Nc3 {[%clk 0:02:14.3]} 16... a4
{[%clk 0:02:33]} 17. Nd4 {[%clk 0:02:14.7]} 17... a3 {[%clk 0:02:31.9]} 18. b3
{[%clk 0:02:09.2]} 18... Bb4 {[%clk 0:02:26.6]} 19. Ne2 {[%clk 0:02:07]} 19...
b5 {[%clk 0:02:19.1]} 20. Qg2 {[%clk 0:01:32.3]} 20... bxc4 {[%clk 0:02:08.6]}
21. bxc4 {[%clk 0:01:34.2]} 21... c6 {[%clk 0:02:09.8]} 22. O-O {[%clk
0:01:32.9]} 22... cxd5 {[%clk 0:02:08.7]} 23. cxd5 {[%clk 0:01:30.2]} 23... Rc8
{[%clk 0:02:06.1]} 24. Bd4 {[%clk 0:01:29.8]} 24... Nxd5 {[%clk 0:02:06.5]} 25.
Rfd1 {[%clk 0:01:18.5]} 25... Nxc3 {[%clk 0:01:44.9]} 26. Nxc3 {[%clk
0:01:00.9]} 26... Bxc3 {[%clk 0:01:36.4]} 27. Bxc3 {[%clk 0:01:00.1]} 27... Qe7
{[%clk 0:01:37.8]} 28. Bd4 {[%clk 0:00:34.6]} 28... Rxc2 {[%clk 0:01:37.7]} 29.
Qg3 {[%clk 0:00:36]} 29... Rfc8 {[%clk 0:01:31.7]} 30. h4 {[%clk 0:00:33.2]}
30... f6 {[%clk 0:01:27.5]} 31. h5 {[%clk 0:00:24.3]} 31... Bf7 {[%clk 0:01:28]}
32. Rab1 {[%clk 0:00:21.2]} 32... Bxa2 {[%clk 0:01:23]} 33. Rb6 {[%clk
0:00:19.9]} 33... Bf7 {[%clk 0:01:21.2]} 34. g5 {[%clk 0:00:17.1]} 34... hxg5
{[%clk 0:01:20]} 35. h6 {[%clk 0:00:18.1]} 35... a2 {[%clk 0:01:15.3]} 36. hxg7
{[%clk 0:00:18]} 36... Rc1 {[%clk 0:01:13.4]} 37. Rxc1 {[%clk 0:00:04.6]} 37...
Rxc1+ {[%clk 0:01:13.9]} 38. Kg2 {[%clk 0:00:06]} 38... a1=Q {[%clk 0:01:13.4]}
39. Bxa1 {[%clk 0:00:06.2]} 39... Rxa1 {[%clk 0:01:13.8]} 40. Qc3 {[%clk
0:00:06.7]} 40... Qe5 {[%clk 0:01:04.2]} 41. Qc8+ {[%clk 0:00:06.3]} 41... Kxg7
{[%clk 0:01:04.6]} 42. Rb8 {[%clk 0:00:08.2]} 42... Qe6 {[%clk 0:00:47.4]} 43.
Qh8+ {[%clk 0:00:07.4]} 43... Kg6 {[%clk 0:00:48.5]} 44. Rb3 {[%clk 0:00:06.5]}
44... Qxb3 {[%clk 0:00:46.4]} 45. Kh2 {[%clk 0:00:08]} 45... Qe6 {[%clk
0:00:44.5]} 46. Qd8 {[%clk 0:00:06]} 46... Qe5+ {[%clk 0:00:44]} 47. Kg2 {[%clk
0:00:06.9]} 47... Qf5 {[%clk 0:00:44.9]} 0-1

[Event "*** Qualifier 4: Titled Tuesday 3|2 Blitz"]
[Site "Chess.com"]
[Date "2017.04.25"]
[Round "10"]
[White "hansen"]
[Black "GrigorGrigorov"]
[Result "1-0"]
[WhiteElo "2663"]
[BlackElo "2536"]
[TimeControl "180+2"]
[EndTime "15:13:56 PDT"]
[Termination "hansen won by checkmate"]

1. e4 {[%clk 0:03:02]} 1... g6 {[%clk 0:03:00.8]} 2. d4 {[%clk 0:02:57.6]} 2...
Bg7 {[%clk 0:03:02]} 3. c3 {[%clk 0:02:58]} 3... d6 {[%clk 0:03:02.6]} 4. Nf3
{[%clk 0:02:57.8]} 4... Nf6 {[%clk 0:03:03.5]} 5. Bd3 {[%clk 0:02:58.7]} 5...
O-O {[%clk 0:03:03.9]} 6. O-O {[%clk 0:02:59.7]} 6... Nbd7 {[%clk 0:03:02.8]} 7.
h3 {[%clk 0:03:00.3]} 7... e5 {[%clk 0:03:03.7]} 8. Re1 {[%clk 0:02:59.5]} 8...
Re8 {[%clk 0:03:01.9]} 9. Na3 {[%clk 0:02:56.6]} 9... b6 {[%clk 0:02:59.9]} 10.
Nc2 {[%clk 0:02:41.7]} 10... Bb7 {[%clk 0:02:59.3]} 11. d5 {[%clk 0:02:38.7]}
11... Nc5 {[%clk 0:02:53.8]} 12. Bb5 {[%clk 0:02:30.7]} 12... Rf8 {[%clk
0:02:52.1]} 13. Nd2 {[%clk 0:02:31.1]} 13... Nh5 {[%clk 0:02:47.6]} 14. b4
{[%clk 0:02:24.5]} 14... Nd7 {[%clk 0:02:45.8]} 15. Nf3 {[%clk 0:02:24.3]} 15...
Nf4 {[%clk 0:02:32.2]} 16. Bc6 {[%clk 0:02:17]} 16... Bxc6 {[%clk 0:02:28.3]}
17. dxc6 {[%clk 0:02:16.3]} 17... Nf6 {[%clk 0:02:29.7]} 18. Bxf4 {[%clk
0:02:09.6]} 18... exf4 {[%clk 0:02:29.5]} 19. e5 {[%clk 0:01:59.6]} 19... dxe5
{[%clk 0:02:26.9]} 20. Nxe5 {[%clk 0:01:59.3]} 20... Qxd1 {[%clk 0:01:59.7]} 21.
Raxd1 {[%clk 0:01:58.6]} 21... Rfd8 {[%clk 0:02:00.1]} 22. c4 {[%clk 0:01:53.2]}
22... Rxd1 {[%clk 0:01:40.8]} 23. Rxd1 {[%clk 0:01:51.3]} 23... Ne4 {[%clk
0:01:42]} 24. Nf3 {[%clk 0:01:43.5]} 24... Nd6 {[%clk 0:01:33.8]} 25. Na3 {[%clk
0:01:34.4]} 25... Bb2 {[%clk 0:01:21.3]} 26. Nb5 {[%clk 0:01:23.5]} 26... Nxc4
{[%clk 0:01:21.7]} 27. Nxc7 {[%clk 0:01:13.2]} 27... Rc8 {[%clk 0:01:22.1]} 28.
Nd5 {[%clk 0:01:14.6]} 28... Kf8 {[%clk 0:01:13.5]} 29. b5 {[%clk 0:01:15.4]}
29... Na3 {[%clk 0:01:09.5]} 30. Nxf4 {[%clk 0:00:34.2]} 30... Bf6 {[%clk
0:00:36.5]} 31. Rd5 {[%clk 0:00:33]} 31... Nc2 {[%clk 0:00:32]} 32. Nd3 {[%clk
0:00:32.5]} 32... Na3 {[%clk 0:00:28.7]} 33. g4 {[%clk 0:00:31.6]} 33... h6
{[%clk 0:00:28.7]} 34. h4 {[%clk 0:00:32.5]} 34... Ke7 {[%clk 0:00:25.3]} 35. g5
{[%clk 0:00:33.4]} 35... hxg5 {[%clk 0:00:26]} 36. hxg5 {[%clk 0:00:35.3]} 36...
Bg7 {[%clk 0:00:27.3]} 37. Kg2 {[%clk 0:00:35]} 37... Bf8 {[%clk 0:00:24.8]} 38.
Rd7+ {[%clk 0:00:33.4]} 38... Ke8 {[%clk 0:00:25.4]} 39. Nd4 {[%clk 0:00:29.5]}
39... Bg7 {[%clk 0:00:23.3]} 40. Rxa7 {[%clk 0:00:28.7]} 40... Nc4 {[%clk
0:00:20.4]} 41. Ne6 {[%clk 0:00:19.3]} 41... Bc3 {[%clk 0:00:17.2]} 42. Nc7+
{[%clk 0:00:18.3]} 42... Kd8 {[%clk 0:00:17.5]} 43. Nd5 {[%clk 0:00:19.1]} 43...
Bd2 {[%clk 0:00:16.3]} 44. Rxf7 {[%clk 0:00:15.4]} 44... Nd6 {[%clk 0:00:17.2]}
45. Rf8+ {[%clk 0:00:12.4]} 45... Ne8 {[%clk 0:00:18.7]} 46. Ne5 {[%clk
0:00:09.9]} 46... Bxg5 {[%clk 0:00:18]} 47. Nf7# {[%clk 0:00:10.9]} 1-0